Cogmind - Beta 16 @@@ ROGUE MODE // 2025.11.14 @ 14:34:39 Player: mogus Result: Self-destructed Performance ------------- Evolutions (2) 1000 Regions Visited (4) 800 Robots Destroyed (21) 105 Value Destroyed (513) 513 Prototype IDs (1) 20 Alien Tech Used (0) 0 Bonus (0) 0 TOTAL SCORE: 2438 Bonus ------- None Cogmind --------- Core Integrity 536/550 Matter 265/300 Energy 265/265 System Corruption 0% Temperature Cool (37) Movement Treading (240) Ox1 Location -8/Materials Parts ------- > --- POWER (2) -------- Improved Ion Engine > --- PROPULSION (3) --- Light Treads > --- UTILITY (4) ------ Medium Storage Unit Visual Processing Unit Propulsion Shielding Light Armor Plating > --- WEAPON (2) ------- Assault Rifle Autogun > --- INVENTORY (10) --- Small Storage Unit Large Matter Pod (150) Improved Sensor Array Targeting Computer Utility Shielding Weapon Shielding Improved EM Shotgun Small Laser Peak State ------------ > --- POWER ------------ Light Ion Engine Improved Ion Engine > --- PROPULSION ------- Light Treads Wheel > --- UTILITY ---------- Medium Storage Unit Visual Processing Unit Propulsion Shielding Light Armor Plating > --- WEAPON ----------- Heavy Assault Rifle Autogun > --- INVENTORY -------- Small Storage Unit Large Matter Pod Targeting Computer Utility Shielding Weapon Shielding Improved EM Shotgun Small Laser Assault Rifle [Rating: 15] Favorites ----------- Power Light Ion Engine Engine Light Ion Engine Propulsion Wheel Treads Light Treads Wheel Wheel Utility Visual Processing Unit Storage Small Storage Unit Processor Visual Processing Unit Protection Propulsion Shielding Weapon Medium Laser Energy Gun Medium Laser Ballistic Gun Assault Rifle Build | -11 -10 -10 -9 -8 ------- Run | Yrd Mat Min Mat Mat Slots Evolved 4 | . . . 2 2 Power 1 | . . . . 1 Propulsion 1 | . . . . 1 Utility 2 | . . . 2 . Weapon . | . . . . . Parts Attached 19 | 6 1 . 9 3 Power 3 | 1 . . 1 1 Engine 3 | 1 . . 1 1 Core . | . . . . . Reactor . | . . . . . Propulsion 3 | 2 . . 1 . Treads 1 | . . . 1 . Leg . | . . . . . Wheel 2 | 2 . . . . Hover . | . . . . . Flight . | . . . . . Utility 6 | 1 1 . 4 . Device . | . . . . . Storage 2 | 1 . . 1 . Processor 1 | . 1 . . . Hackware . | . . . . . Protection 3 | . . . 3 . Artifact . | . . . . . Weapon 7 | 2 . . 3 2 Energy Gun 3 | 1 . . 2 . Energy Cannon . | . . . . . Ballistic Gun 4 | 1 . . 1 2 Ballistic Cannon . | . . . . . Launcher . | . . . . . Special Weapon . | . . . . . Impact Weapon . | . . . . . Slashing Weapon . | . . . . . Piercing Weapon . | . . . . . Special Melee Weapon . | . . . . . Unidentified Prototypes 1 | . . . 1 . Parts Lost 7 | . . . 5 2 Power 2 | . . . 1 1 Propulsion 1 | . . . 1 . Utility 1 | . . . 1 . Weapon 3 | . . . 2 1 Highest Loss Streak 4 | . . . 4 2 To Critical Strikes . | . . . . . Average Backups 6 | 1 4 8 7 8 Power . | . . 1 1 . Propulsion . | . . . . . Utility 4 | . 3 6 5 5 Weapon 1 | . . 1 1 2 Tool/Special . | . . . . . Unused Backups 5 | . 1 . . 4 Power . | . . . . . Propulsion . | . . . . . Utility 4 | . . . . 4 Weapon 1 | . 1 . . . Tool/Special . | . . . . . Average Slot Usage (%) 93 | . 94 100 95 81 Engine 12 | . 14 14 9 10 Treads 3 | . . . 7 9 Wheel 20 | . 28 28 13 7 Storage 12 | . 14 14 11 9 Processor 10 | . 8 14 11 9 Protection 9 | . . . 20 18 Energy Gun 10 | . 14 14 10 . Ballistic Gun 13 | . 14 14 10 18 Peak Build Rating 15 | 6 8 8 14 15 Average Rating 9 | 3 7 8 11 13 On Entrance 7 | . 6 8 8 13 Avg Prop Armor Cover (%) 3 | . . . 4 3 Naked Turns . | . . . . . Heaviest Build 30 | 12 12 12 26 30 Greatest Support 26 | 26 26 26 26 20 Greatest Overweight (x) 1 | . . . 1 1 Average Overweight (x) . | . . . . 1 Largest Inventory Capacity 10 | 8 8 8 10 10 Average Capacity 8 | 6 8 8 9 10 Most Carried 9 | 4 8 8 9 9 Average Carried 6 | . 4 8 7 8 Final Capacity 10 | 8 8 8 10 10 Final Carried 8 | . 8 8 8 8 Class Distribution -------------------- 62% | Mutant 37% | Scavenger-Mutant Dominant Class ---------------- Mutant | -10/Materials Mutant | -10/Mines Scavenger-Mutant | -9/Materials Scavenger-Mutant | -8/Materials Resources | -11 -10 -10 -9 -8 ----------- Run | Yrd Mat Min Mat Mat Matter Collected 692 | 205 162 . 277 48 Remotely . | . . . . . Salvage Created 599 | . 162 . 363 74 Parts 44 | . 11 . 29 4 Haulers Intercepted . | . . . . . Recyclers Shooed . | . . . . . Parts Field Recycled . | . . . . . Retrieved Matter . | . . . . . Parts Self-Destructed . | . . . . . Prevented . | . . . . . Parts Restored . | . . . . . Kills | -11 -10 -10 -9 -8 ------- Run | Yrd Mat Min Mat Mat Combat Hostiles Destroyed 16 | . 3 . 12 1 Guns 16 | . 3 . 12 1 Classes Destroyed 4 | . 2 . 2 . Watcher 5 | . 3 . 1 1 Swarmer 7 | . . . 7 . Grunt 7 | . 3 . 3 1 Sentry 2 | . . . 2 . Best Kill Streak 4 | . 2 . 4 2 Combat Bots Only 4 | . 1 . 4 1 Max Kills in Single Turn 1 | . 1 . 1 1 Gunslinging . | . . . . . Exploded . | . . . . . Melee . | . . . . . Uniques/NPCs Destroyed . | . . . . . Combat | -11 -10 -10 -9 -8 -------- Run | Yrd Mat Min Mat Mat Hostile Shots Fired 91 | . 23 . 49 19 Missed 28 | . 7 . 14 7 Hits 63 | . 16 . 35 12 Projectile 63 | . 16 . 35 12 Critical Strikes 3 | . . . 3 . Actively Blocked 1 | . . . 1 . Damage Taken 829 | . 195 . 434 200 Core 91 | . 51 . 26 14 Absorbed by Shields . | . . . . . Redirected to Shielding 27 | . . . 21 6 Core Remaining (%) 90 | 100 . 79 93 . Volleys Fired 58 | . 20 . 30 8 Largest 2 | . 2 . 2 2 Hottest 73 | . 70 . 73 46 Shots Fired 110 | . 39 . 56 15 Gun 110 | . 39 . 56 15 Cannon . | . . . . . Launcher . | . . . . . Special . | . . . . . Kinetic 63 | . 20 . 28 15 Thermal 47 | . 19 . 28 . Explosive . | . . . . . Electromagnetic . | . . . . . Robot Hit Streak 22 | . 7 . 22 8 Robot Miss Streak 8 | . 8 . 2 2 Penetration Max . | . . . . . Secondary Targets 1 | . . . 1 . Max Gunslinging Chain 1 | . . . 1 . Shots Hit Robots 73 | . 21 . 43 9 Core Hits 32 | . 8 . 19 5 Critical Kills 1 | . . . 1 . Critical Parts Destroyed . | . . . . . Critical Strikes 4 | . 2 . 2 . Burn 3 | . 2 . 1 . Destroy 1 | . . . 1 . Melee Attacks . | . . . . . Impact . | . . . . . Slashing . | . . . . . Piercing . | . . . . . Sneak Attacks . | . . . . . Combat Hostiles . | . . . . . Follow-up Attacks . | . . . . . Damage Inflicted 990 | . 275 . 551 164 Guns 990 | . 275 . 551 164 Cannons . | . . . . . Explosions . | . . . . . Melee . | . . . . . Ramming . | . . . . . Kinetic 616 | . 174 . 278 164 Thermal 374 | . 101 . 273 . Explosive . | . . . . . Electromagnetic . | . . . . . Impact . | . . . . . Slashing . | . . . . . Piercing . | . . . . . Highest Corruption . | . . . . . Average Corruption . | . . . . . Corruption Purged . | . . . . . Corruption Blocked . | . . . . . Overload Shots . | . . . . . Overflow Damage . | . . . . . Projectiles . | . . . . . Explosions . | . . . . . Melee . | . . . . . Knockbacks . | . . . . . Impact . | . . . . . Kinetic . | . . . . . Secondary . | . . . . . Self-Inflicted Damage . | . . . . . Shots . | . . . . . Rammed . | . . . . . Targets Rammed . | . . . . . Kicked . | . . . . . Crushed . | . . . . . Highest Temperature 171 | . 74 . 171 50 Average Temperature 46 | . 26 . 67 16 Received Heat Transfer 399 | . 96 . 195 108 Siege Activations . | . . . . . Martial Activations . | . . . . . Shielding Activations . | . . . . . Robots Disrupted . | . . . . . Combat Hostiles . | . . . . . Robots Corrupted . | . . . . . Combat Hostiles . | . . . . . Parts Fried . | . . . . . Impact Corruptions . | . . . . . Robots Melted . | . . . . . Combat Hostiles . | . . . . . Parts Melted 2 | . 1 . 1 . Heat Transferred 1332 | . 444 . 888 . Parts Sabotaged . | . . . . . Parts Stolen . | . . . . . Parts Stripped . | . . . . . Power Chain Reactions . | . . . . . Alert | -11 -10 -10 -9 -8 ------- Run | Yrd Mat Min Mat Mat Maximum Alert Level . | . . . . . Low Security (%) 100 | 100 100 100 100 100 Level 1 . | . . . . . Level 2 . | . . . . . Level 3 . | . . . . . Level 4 . | . . . . . Level 5 . | . . . . . High Security . | . . . . . Max Security . | . . . . . Peak Influence 146 | . 38 7 146 48 Initial 48 | . . 7 . 48 Average 26 | . 6 1 62 23 Influence Increases 457 | . 92 . 323 42 Destroy 0b10 Robot/C 320 | . 60 . 240 20 Destroy 0b10 Robot/NC 25 | . 15 . 5 5 Destroy Leader 80 | . 16 . 62 2 Destroy Structure 2 | . 1 . 1 . Lose Combat Pursuer 30 | . . . 15 15 Influence Decreases 455 | . 73 19 207 156 Entered New Map 80 | . . 12 . 68 Time Decay 305 | . 73 7 157 68 Lost Part 70 | . . . 50 20 Squads Dispatched 4 | . 2 . 2 . Investigation 1 | . . . 1 . Extermination . | . . . . . Reinforcement 3 | . 2 . 1 . Assault . | . . . . . Garrison . | . . . . . Intercept . | . . . . . Searches Triggered . | . . . . . Construction Impeded . | . . . . . Haulers Reinforced . | . . . . . Active Scanning Responses . | . . . . . Cargo Convoy Interrupts . | . . . . . Stealth | -11 -10 -10 -9 -8 --------- Run | Yrd Mat Min Mat Mat Distress Signals 2 | . . . 1 1 Communications Jammed . | . . . . . Distress Signals . | . . . . . Times Spotted 31 | . 11 . 15 5 Peak Tracking Total 4 | . 4 . 4 3 Tactical Retreats 2 | . . . 1 1 Traps | -11 -10 -10 -9 -8 ------- Run | Yrd Mat Min Mat Mat Traps Triggered 2 | . 1 . 1 . Indirectly . | . . . . . Trap Hack Attempts . | . . . . . Triggered . | . . . . . Disarmed . | . . . . . Reprogrammed . | . . . . . Reused . | . . . . . Traps Extracted . | . . . . . Installed . | . . . . . Triggered . | . . . . . Machines | -11 -10 -10 -9 -8 ---------- Run | Yrd Mat Min Mat Mat Machines Disabled . | . . . . . Max in Single Turn . | . . . . . Machines Repaired . | . . . . . Machines Dismantled . | . . . . . Machines Sabotaged . | . . . . . Overloaded Fab Kills . | . . . . . Hacking | -11 -10 -10 -9 -8 --------- Run | Yrd Mat Min Mat Mat Machines Accessed . | . . . . . Terminals . | . . . . . Fabricators . | . . . . . Repair Stations . | . . . . . Recycling Units . | . . . . . Scanalyzers . | . . . . . Garrison Access . | . . . . . Total Hacks . | . . . . . Successful . | . . . . . Failed . | . . . . . Catastrophic . | . . . . . Database Lockouts . | . . . . . Manual . | . . . . . Terminals . | . . . . . Fabricators . | . . . . . Repair Stations . | . . . . . Recycling Units . | . . . . . Scanalyzers . | . . . . . Garrison Access . | . . . . . Terminal Hacks . | . . . . . Fabricator Hacks . | . . . . . Repair Station Hacks . | . . . . . Recycling Unit Hacks . | . . . . . Scanalyzer . | . . . . . Garrison Access Hacks . | . . . . . Unauthorized Hacks . | . . . . . Terminals . | . . . . . Fabricators . | . . . . . Repair Stations . | . . . . . Recycling Units . | . . . . . Scanalyzers . | . . . . . Garrison Access . | . . . . . Data Cores Recovered . | . . . . . Used . | . . . . . Hacking Detections . | . . . . . Full Trace Events . | . . . . . Feedback Events . | . . . . . Feedback Blocked . | . . . . . Robot Schematics Acquired . | . . . . . Robots Built . | . . . . . Authchips . | . . . . . Time . | . . . . . Total Robot Build Rating . | . . . . . Part Schematics Acquired . | . . . . . Parts Built . | . . . . . Authchips . | . . . . . Time . | . . . . . Total Part Build Rating . | . . . . . Part Studies Acquired . | . . . . . Parts Repaired . | . . . . . Time . | . . . . . Parts Recycled . | . . . . . Recycled Matter . | . . . . . Retrieved Matter . | . . . . . Retrieved Components . | . . . . . Parts Scanalyzed . | . . . . . Part Schematics Acquired . | . . . . . Parts Damaged . | . . . . . Bothacking | -11 -10 -10 -9 -8 ------------ Run | Yrd Mat Min Mat Mat Used RIF Installer . | . . . . . Robots Hacked . | . . . . . Non-combat . | . . . . . Combat . | . . . . . Robot Hacks Applied . | . . . . . Relay Couplers Released . | . . . . . Fabnet Peak Effective % . | . . . . . Robots Rewired . | . . . . . Allies Hacked . | . . . . . Hacks Repelled . | . . . . . Allies | -11 -10 -10 -9 -8 -------- Run | Yrd Mat Min Mat Mat Total Allies . | . . . . . Largest Group . | . . . . . Highest-Rated Group . | . . . . . Highest-Rated Ally . | . . . . . Total Orders . | . . . . . Ally Attacks . | . . . . . Total Damage . | . . . . . Kills . | . . . . . Allies Corrupted . | . . . . . Allies Melted . | . . . . . Intel | -11 -10 -10 -9 -8 ------- Run | Yrd Mat Min Mat Mat Active Infowar (turns) 946 | . 298 118 371 159 Optics 946 | . 298 118 371 159 Robot Analysis Total . | . . . . . Derelict Logs Recovered . | . . . . . Drone Launches . | . . . . . Drone Recoveries . | . . . . . Exploration | -11 -10 -10 -9 -8 ------------- Run | Yrd Mat Min Mat Mat Turns Passed 1145 | 43 454 118 371 159 Spaces Moved 774 | 38 397 132 153 54 Core 8 | 8 . . . . Treads 143 | . . . 89 54 Legs . | . . . . . Wheels 623 | 30 397 132 64 . Hover . | . . . . . Flight . | . . . . . Fastest Speed 50 | 50 90 90 90 240 Average Speed 116 | 81 90 90 174 240 Slowest Speed 240 | 90 90 90 240 240 Overloaded Moves . | . . . . . Propulsion Burnouts . | . . . . . Robots Hopped . | . . . . . Potential Cave-ins . | . . . . . Cave-ins Triggered . | . . . . . Exploration Rate (%) 22 | 3 46 37 16 10 Regions Visited 4 Branch Regions 1 Pre-discovered Areas . | . . . . . Known Exits Taken . | . . . . . Unknown Exits Taken 4 | 1 1 1 1 . Scrap Searched . | . . . . . Spaces Dug . | . . . . . Terrain Destroyed . | . . . . . Melee . | . . . . . Projectile . | . . . . . AOE . | . . . . . Terrain Rammed . | . . . . . Walls Destroyed . | . . . . . Machines Disabled . | . . . . . Actions | -11 -10 -10 -9 -8 --------- Run | Yrd Mat Min Mat Mat Total 905 | 49 455 131 201 69 Wait 29 | . 27 . 2 . Move 770 | 37 396 131 152 54 Hop . | . . . . . Pick Up 25 | 6 10 . 7 2 Fast Attach . | . . . . . Attach 16 | 6 1 . 7 2 Detach . | . . . . . Swap 5 | . . . 3 2 Drop 2 | . 1 . . 1 Fire 58 | . 20 . 30 8 Melee . | . . . . . Ram . | . . . . . Kick . | . . . . . Crush . | . . . . . Escape Stasis . | . . . . . Rewire . | . . . . . Trap . | . . . . . Miscellaneous . | . . . . . Route ------- -11/Scrapyard -10/Materials -10/Mines -9/Materials -8/Materials History --------- Turn | Location | Event 27 | -11/Scrapyard | Discovered new exit (range 15) 44 | -11/Scrapyard | Entered Materials 316 | -10/Materials | Build established: Mutant 487 | -10/Materials | Discovered new exit (range 9) 498 | -10/Materials | Entered Mines 544 | -10/Mines | Assembled infested the area 600 | -10/Mines | Discovered new exit (range 17) 616 | -10/Mines | Entered Materials 616 | -9/Materials | Evolved 2 slots: Utility x2 745 | -9/Materials | Lost 4 parts (1p1n1u1w) 924 | -9/Materials | Discovered new exit (range 17) 987 | -9/Materials | Entered another Materials area 987 | -8/Materials | Evolved 2 slots: Power x1, Propulsion x1 1025 | -8/Materials | Build established: Scavenger-Mutant 1146 | -8/Materials | Self-destructed Last Messages --------------- PARAMETERS=POWER+1,PROPULSION+1 LOCATION=UNKNOWN GOAL=ESCAPE Acquired Autogun. K-01 Serf collects debris. R-06 Scavenger destroyed. G-47 Trooper destroyed. K-01 Serf collects debris. Acquired 34 matter. K-01 Serf collects debris. W-25 Informer destroyed. Acquired 14 matter. R-06 Scavenger collects Tractor Beam. Dropped Wheel. Acquired Imp. Sensor Array. R-06 Scavenger collects Imp. Hover Unit. Hvy. Assault Rifle destroyed. M-13 Machinist suffers critical hit (Burn). M-13 Machinist destroyed. Lgt. Ion Engine destroyed. Map ----- +----------------------------------------------------+ | ?????????????????????????# "" ! #??????? | | ?????????????????????????# ""S #??????? | | ?????????????????????????# "" #??????? | | ?????????????????????????# #??????? | | ?????????????????????????# ! #??????? | | ?????????????????????????# """ ! #??????? | | ?????????????????????????# """ #??????? | | ?????????????????????????# """ #??????? | | ????????????????###+###??# #??????? | | ???? ############ ########+####??????? | | ???? #????????? | | ???? T #????????? | | ???? #????????? | | ?????????######## ####### #????????? | | ????????????????## ######## #????????? | | ?????????????????# # = # #????????? | | ?????????????????# *%#g # #####????? | | ?????????????????+ !+=! # #????? | | ?????????????????# #%g # #????? | | ?????????????????# #g # #????? | | ?????????????????# # ####+#####???? | | ?????????????????# # % # ####? | | ?????????????????# *%# ! # """#? | | ?????????????????# =# !! # [ R"#? | | ?????????????????# # !!= # [[ """#? | | ?????????????????# # !@ # ####? | | ?????????????????# # # """ #???? | | ?????????????????# # # """ #???? | | ?????????????????# #####+## """ #???? | | ?????????????????# ???????# #???? | | ?????????????????# ???????##########???? | | ?????????????????# ????????????????????? | | ?????????????????? ????????????????????? | | ?????????????????? ????????????????????? | | ?????????????????????????????????????????? | | ?????????????????????????????????????????? | | ?????????????????????????????????????????? | | ?????????????????????????????????????????? | | ?????????????????????????????????????????? | | ?????????????????????????????????????????? | | ?????????????????????????????????????????? | | ?????????????????????????????????????????? | | ?????????????????????????????????????????? | | ?????????????????????????????????????????? | | ?????????????????????????????????????????? | | ?????????????????????????????????????????? | | ?????????????????????????????????????????? | | ?????????????????????????????????????????? | | ?????????????????????????????????????????? | | ?????????????????????????????????????????? | +----------------------------------------------------+ Best States ------------- Heat Dissipation 31 Energy Generation 17 Energy Capacity 290 Matter Stores 300 Matter Capacity 300 Sight Range 18 Terrain Scan Density 10 Armor Coverage 150 Propulsion Shielding 33 Evasion (%) 50 Recoil Reduction 1 Item Schematics ----------------- None Robot Schematics ------------------ None Fabricated ------------ Nothing Repaired ---------- Nothing Studied --------- None Alien Tech Used ----------------- None Achievements -------------- That Tickles Challenges ------------ None Game ------ Seed HackingClaymoresMegatreads Manual? 0 Play Time 00:09:36 Cumulative 19.4 hours Start 2025.11.04 @ 20:54:50 End 2025.11.14 @ 14:34:39 Sessions 2 Manual Loads 0 Difficulty Rogue Special Mode None Game No. 21 Rogue 16 Adventurer 5 Explorer 0 Win Type - Total 0 Types 0/0/0/0/0/0/0/0/0/0 Lore% 20 Gallery% 26 Achievement% 17 Wizard Run 0 Options --------- Layout 1 ASCII 0 Keyboard 0 Movement Mouse Keybinds 0 Fullscreen 1 Font 24/Smallcaps Map View 50x35 Zoom Use 0% Tactical HUD 0 Map Filters NONE Filters NONE Steam 1 RUN: b04ac958-1ccb-460d-91f6-b314b602be06